bitfinex/quotes_ETHUSD_20250214
["timestamp","ask_amount","ask_price","bid_price","bid_amount"]
[1739553646920,4.09e-06,2737.8,2737.7,6.6527]
[1739553647117,0.06955753,2737.8,2737.7,3.0]
[1739553647441,0.06955753,2737.8,2737.5,0.1464]
[1739553647442,1.6448,2737.7,2737.5,3.7993]
[1739553647668,0.06939462,2737.6,2737.5,3.7993]
[1739553647866,0.06939462,2737.6,2737.5,6.7993]
[1739553649584,0.06939462,2737.6,2737.5,0.1464]
[1739553649785,0.06939462,2737.6,2737.5,3.79936]
[1739553651983,0.06939462,2737.6,2737.5,0.1464]
[1739553652350,0.06939462,2737.6,2737.5,3.79936]
[1739553653968,4.09e-06,2737.8,2737.7,3.6527]
[1739553654290,0.06901931,2737.8,2737.7,3.6527]
[1739553654866,0.06901931,2737.8,2737.7,6.6527]
[1739553656895,0.79307595,2737.8,2737.7,6.6527]
[1739553660395,0.06901931,2737.8,2737.7,6.6527]
[1739553661190,0.06901931,2737.8,2737.7,3.6527]
[1739553661496,1.6641,2737.7,2737.5,0.1464]
[1739553661694,6.47246266,2737.6,2737.5,0.1464]
[1739553662187,3.65358,2737.1,2736.6,3.09272991]
[1739553662388,4.20377,2736.9,2736.3,6.74719991]
[1739553662568,0.55,2736.9,2736.4,3.6543]
[1739553662768,0.55,2736.7,2736.4,3.6543]
[1739553663299,0.06581085,2736.6,2736.3,6.74719991]
[1739553663991,0.06581085,2736.6,2736.4,3.65436]
[1739553664173,0.06581085,2736.6,2736.3,6.74719991]
[1739553664569,0.06581085,2736.6,2736.4,3.65442]
[1739553664993,0.06581085,2736.6,2736.4,3.65441]
[1739553666483,0.06581085,2736.6,2736.5,3.6543]
[1739553666683,0.06581085,2736.6,2736.3,10.40162991]
[1739553666910,0.80698223,2736.6,2736.3,6.74715991]
[1739553667207,0.80698223,2736.6,2736.4,3.65442]
[1739553667907,0.80698223,2736.6,2736.4,3.65443]
[1739553668502,0.80698223,2736.6,2736.3,6.74715991]
[1739553668683,1.5578,2736.5,2736.4,3.65442]
[1739553668870,1.62353138,2736.5,2736.4,3.65442]
[1739553669269,0.06573138,2736.5,2736.4,3.65442]
[1739553670815,0.06573138,2736.5,2736.4,6.65442]
[1739553671107,1.5578,2737.1,2736.8,3.6538]
[1739553671294,0.61612869,2737.0,2736.8,3.6538]
[1739553671496,0.61612869,2737.0,2736.9,3.65376]
[1739553671497,0.06612869,2737.0,2736.9,3.65376]
[1739553671681,0.06612869,2737.0,2736.9,6.65376]
[1739553671884,1.5578,2737.7,2737.6,3.65283]
[1739553672183,4.09e-06,2737.8,2737.7,3.6527]
[1739553672388,0.74666021,2737.8,2737.7,6.74542991]
[1739553673001,4.09e-06,2737.8,2737.7,9.74542991]
[1739553676023,0.05748788,2737.8,2737.7,9.74542991]
[1739553677393,4.09e-06,2737.8,2737.7,9.74542991]
[1739553679729,4.09e-06,2737.8,2737.7,15.08542991]
[1739553679933,4.09e-06,2737.8,2737.7,18.32655982]
[1739553680117,4.09e-06,2737.8,2737.7,9.89382991]
[1739553681681,4.09e-06,2737.8,2737.7,12.98655982]
[1739553681887,7.1257,2739.0,2738.6,3.65143]
[1739553682114,0.93697976,2738.9,2738.6,6.74415991]
[1739553682627,0.55,2738.8,2738.7,3.65136]
[1739553683438,0.55,2738.8,2738.6,3.09272991]
[1739553683599,0.93697976,2738.9,2738.7,3.65127]
[1739553683969,11.1,2739.0,2738.9,3.6511]
[1739553684231,11.1,2739.0,2738.9,6.74382991]
[1739553684232,17.36603981,2739.0,2738.9,6.74382991]
[1739553685487,22.91603981,2739.0,2738.9,6.74382991]
[1739553686707,27.75,2739.0,2738.9,6.74382991]
[1739553686892,27.75,2739.0,2738.9,9.74382991]
[1739553687536,27.807157,2739.0,2738.9,9.74382991]
[1739553688030,33.357157,2739.0,2738.9,9.74382991]
[1739553689244,38.907157,2739.0,2738.9,9.74382991]
[1739553690548,44.457157,2739.0,2738.9,9.74382991]
[1739553691650,50.007157,2739.0,2738.9,9.74382991]
[1739553693152,55.557157,2739.0,2738.9,9.74382991]
[1739553693950,42.95193206,2739.0,2738.9,12.83655982]
[1739553694529,48.50193206,2739.0,2738.9,12.83655982]
[1739553694853,35.42469644,2739.0,2738.9,18.32495982]
[1739553695026,35.42469644,2739.0,2738.9,25.1358523]
[1739553695214,31.77373644,2739.0,2738.9,25.1358523]
[1739553695419,28.17439992,2739.0,2738.9,25.1358523]
[1739553695640,28.17439992,2739.0,2738.9,24.68197318]
[1739553695641,31.89891992,2739.0,2738.9,24.68197318]
[1739553695816,31.89891992,2739.0,2738.9,24.78197318]
[1739553696324,18.6987237,2739.0,2738.9,25.94063026]
[1739553696541,18.5503237,2739.0,2738.9,26.39450938]
[1739553696747,5.94509876,2739.0,2738.9,26.7938668]
[1739553697061,11.44347528,2739.0,2738.9,26.7938668]
[1739553697368,0.24090955,2739.0,2738.9,27.39574876]
[1739553697565,5.55,2739.9,2739.8,3.6499]
[1739553697752,5.59714395,2739.9,2739.8,15.36662991]
[1739553698236,11.14714395,2739.9,2739.8,15.36662991]
[1739553698571,5.67250395,2739.9,2739.8,18.47435982]
[1739553698732,3.89308418,2739.9,2739.8,18.47435982]
[1739553699133,3.89308418,2739.9,2739.8,19.06124178]
[1739553699558,9.44308418,2739.9,2739.8,19.06124178]
[1739553699734,0.78769486,2739.9,2739.8,19.06124178]
[1739553699934,0.78769486,2739.9,2739.8,25.41825514]
[1739553700462,4.86e-06,2739.9,2739.8,25.41825514]
[1739553700848,3.72512486,2739.9,2739.8,25.41825514]
[1739553701148,3.72512486,2739.9,2739.8,22.32552523]
[1739553701543,3.72512486,2739.9,2739.8,25.41825514]
[1739553702471,1.97560486,2739.9,2739.8,25.41825514]
[1739553702674,0.73039224,2741.0,2740.2,6.64936]
[1739553703767,0.73039224,2741.0,2740.2,6.91684965]
[1739553703969,38.85,2740.3,2740.2,12.53984965]
[1739553704230,38.89359459,2740.3,2740.2,12.87424196]
[1739553706026,44.44359459,2740.3,2740.2,8.94188196]
[1739553706227,49.84802833,2740.3,2740.2,5.94188196]
[1739553706527,49.84802833,2740.3,2740.2,0.60188196]
[1739553706823,55.39802833,2740.3,2740.2,0.60188196]
[1739553707375,51.59169459,2740.3,2740.2,0.60188196]
[1739553707883,57.14169459,2740.3,2740.2,0.60188196]
[1739553708087,57.14169459,2740.3,2740.2,0.26748965]
[1739553708611,57.14169459,2740.3,2739.8,3.64979]
[1739553709111,57.14169459,2740.3,2739.7,3.65003]
[1739553709416,66.49802833,2740.3,2739.7,3.65003]
[1739553709916,66.49802833,2740.3,2739.9,0.33467159]
[1739553710114,62.69169459,2740.3,2739.9,3.98442159]
[1739553710712,68.24169459,2740.3,2739.9,3.98442159]
[1739553710874,68.24169459,2740.3,2740.0,3.64963]
[1739553711086,68.24169459,2740.3,2740.1,3.64948]
[1739553711316,66.64359459,2740.3,2740.2,6.64936]
[1739553711971,72.19359459,2740.3,2740.2,6.64936]
[1739553713007,72.19359459,2740.3,2740.2,7.25204457]
[1739553713192,77.74359459,2740.3,2740.2,7.25204457]
[1739553714385,83.29359459,2740.3,2740.2,7.25204457]
[1739553715777,88.84359459,2740.3,2740.2,7.25204457]
[1739553715980,88.84359459,2740.3,2740.2,3.60268457]
[1739553716795,90.45079459,2740.3,2740.2,3.60268457]
[1739553717113,96.00079459,2740.3,2740.2,3.60268457]
[1739553717500,99.02427243,2740.3,2740.2,0.60268457]
[1739553718319,104.57427243,2740.3,2740.2,0.60268457]
[1739553718996,101.55079459,2740.3,2740.2,0.60268457]
[1739553719201,101.55079459,2740.3,2740.2,4.25204457]
[1739553719518,101.55079459,2740.3,2740.2,3.98403159]
[1739553719713,107.10079459,2740.3,2740.2,6.98403159]
[1739553719918,105.49359459,2740.3,2740.2,6.98403159]
[1739553720082,105.49359459,2740.3,2740.2,10.0767615]
[1739553720614,105.49359459,2740.3,2740.2,45.0767615]
[1739553720985,111.04359459,2740.3,2740.2,45.0767615]
[1739553721281,111.0,2740.3,2740.2,45.34477448]
[1739553722319,116.55,2740.3,2740.2,45.34477448]
[1739553723336,116.58433812,2740.3,2740.2,56.75877486]
[1739553723517,116.58433812,2740.3,2740.2,56.77377486]
[1739553723518,113.01123812,2740.3,2740.2,56.77377486]
[1739553724366,107.53737812,2740.3,2740.2,57.04325984]
[1739553724804,109.43813812,2740.3,2740.2,57.04325984]
[1739553725439,107.61351812,2740.3,2740.2,57.04325984]
[1739553725953,100.31503812,2740.3,2740.2,56.77377486]
[1739553726123,105.86503812,2740.3,2740.2,56.77377486]
[1739553726326,96.74193812,2740.3,2740.2,56.77377486]
[1739553726741,96.74193812,2740.3,2740.2,56.87377486]
[1739553727111,96.7076,2740.3,2740.2,56.87377486]
[1739553727406,82.35389506,2740.3,2740.2,56.87377486]
[1739553728412,80.60541506,2740.3,2740.2,57.42377486]
[1739553729186,80.60541506,2740.3,2740.2,53.96404495]
[1739553729336,80.60541506,2740.3,2740.2,18.94904495]
[1739553729738,86.15541506,2740.3,2740.2,18.94904495]
[1739553729943,86.15541506,2740.3,2740.2,53.66604495]
[1739553730143,86.15541506,2740.3,2740.2,53.94904495]
[1739553730964,77.03231506,2740.3,2740.2,54.06404495]
[1739553731131,82.58231506,2740.3,2740.2,54.06404495]
[1739553731566,80.75769506,2740.3,2740.2,54.06404495]
[1739553731728,78.93307506,2740.3,2740.2,54.06404495]
[1739553731924,77.10845506,2740.3,2740.2,53.66604495]
[1739553732252,77.10845506,2740.3,2740.2,53.94904495]
[1739553732463,82.65845506,2740.3,2740.2,47.60703159]
[1739553732816,82.65845506,2740.3,2740.2,47.62203159]
[1739553733016,80.83383506,2740.3,2740.2,47.62203159]
[1739553733664,86.38383506,2740.3,2740.2,47.62203159]
[1739553734815,86.38383506,2740.3,2740.2,54.06404495]
[1739553734816,82.81073506,2740.3,2740.2,54.06404495]
[1739553735161,77.33687506,2740.3,2740.2,54.06404495]
[1739553735948,79.23763506,2740.3,2740.2,54.06404495]
[1739553736234,75.58839506,2740.3,2740.2,54.06404495]
[1739553736400,73.76377506,2740.3,2740.2,54.06404495]
[1739553736593,70.11453506,2740.3,2740.2,54.06404495]
[1739553737187,75.66453506,2740.3,2740.2,54.06404495]
[1739553737486,68.36605506,2740.3,2740.2,54.06404495]
[1739553737687,66.54143506,2740.3,2740.2,54.06404495]
[1739553738329,62.96833506,2740.3,2740.2,54.06404495]
[1739553739684,61.21985506,2740.3,2740.2,54.06404495]
[1739553740023,59.39523506,2740.3,2740.2,54.06404495]
[1739553740331,52.09675506,2740.3,2740.2,54.06404495]
[1739553740897,55.82213506,2740.3,2740.2,54.06404495]
[1739553741913,52.17289506,2740.3,2740.2,54.06404495]
[1739553742241,52.24903506,2740.3,2740.2,54.06404495]
[1739553742523,50.42441506,2740.3,2740.2,54.06404495]
[1739553742728,46.77517506,2740.3,2740.2,54.06404495]
[1739553743327,43.12593506,2740.3,2740.2,54.06404495]
[1739553743641,30.59685012,2740.3,2740.2,55.67658115]
[1739553743941,26.6470145,2740.3,2740.2,55.67658115]
[1739553744318,21.1731545,2740.3,2740.2,55.67658115]
[1739553744635,17.5239145,2740.3,2740.2,55.67658115]
[1739553744823,23.0739145,2740.3,2740.2,55.67658115]
[1739553745440,13.9508145,2740.3,2740.2,55.67658115]
[1739553745786,13.9508145,2740.3,2740.2,56.20226038]
[1739553745990,13.9508145,2740.3,2740.2,56.48526038]
[1739553745991,10.84542518,2740.3,2740.2,56.48526038]
[1739553746535,5.55,2741.2,2740.7,0.015]
[1739553746832,5.55,2741.2,2741.1,9.74089991]
[1739553746993,5.55,2741.2,2741.1,10.02389991]
[1739553747328,5.55,2741.2,2741.1,45.03139991]
[1739553747530,11.1,2741.2,2741.1,45.03139991]
[1739553747737,11.1,2741.2,2741.1,45.3660715]
[1739553748307,11.1,2741.2,2741.1,10.3585715]
[1739553748705,16.65,2741.2,2741.1,10.3585715]
[1739553748906,16.65,2741.2,2741.1,45.3585715]
[1739553749897,22.2,2741.2,2741.1,45.3585715]
[1739553750493,22.2,2741.2,2741.1,38.33467159]
[1739553750842,26.0496,2741.2,2741.1,7.26584159]
[1739553750991,26.0496,2741.2,2741.1,6.98284159]
[1739553751192,29.3796,2741.2,2741.1,6.98284159]
[1739553752410,33.3,2741.2,2741.1,6.98284159]
[1739553753023,33.3,2741.2,2741.1,10.0755715]
[1739553753736,38.85,2741.2,2741.1,10.0755715]
[1739553754039,38.85,2741.2,2741.1,41.98284159]
[1739553754903,44.4,2741.2,2741.1,41.98284159]
[1739553755899,44.4,2741.2,2741.1,42.26584159]
[1739553756202,49.95,2741.2,2741.1,42.26584159]
[1739553757449,55.5,2741.2,2741.1,48.60785495]
[1739553758649,61.05,2741.2,2741.1,48.60785495]
[1739553760051,66.6,2741.2,2741.1,51.70808486]
[1739553761220,72.15,2741.2,2741.1,48.60785495]
[1739553761425,73.7188,2741.2,2741.1,48.60785495]
[1739553762359,79.2688,2741.2,2741.1,48.60785495]
[1739553763158,79.2688,2741.2,2741.1,48.32485495]
[1739553763365,79.2688,2741.2,2741.1,6.98284159]
[1739553763366,81.01237401,2741.2,2741.1,6.98284159]
[1739553763526,86.56237401,2741.2,2741.1,6.98284159]
[1739553763855,84.8188,2741.2,2741.1,6.98284159]
[1739553765097,90.3688,2741.2,2741.1,6.98284159]
[1739553766186,94.35,2741.2,2741.1,6.99034159]
[1739553766495,92.52598,2741.2,2741.1,10.0830715]
[1739553766892,92.52598,2741.2,2741.1,45.0830715]
[1739553767099,85.2299,2741.2,2741.1,45.0905715]
[1739553767457,90.7799,2741.2,2741.1,45.0830715]
[1739553768323,87.13186,2741.2,2741.1,45.0905715]
[1739553768510,81.6598,2741.2,2741.1,56.77258486]
[1739553768690,87.2098,2741.2,2741.1,56.77258486]
[1739553769512,81.73774,2741.2,2741.1,56.77258486]
[1739553769872,83.6397,2741.2,2741.1,56.77258486]
[1739553770318,78.16764,2741.2,2741.1,56.77258486]
[1739553770486,74.5196,2741.2,2741.1,56.77258486]
[1739553771073,80.0696,2741.2,2741.1,56.77258486]
[1739553771275,74.59754,2741.2,2741.1,56.77258486]
[1739553771926,74.59754,2741.2,2741.1,56.76508486]
[1739553772127,74.59754,2741.2,2741.1,57.04808486]
[1739553772328,80.14754,2741.2,2741.1,57.04808486]
[1739553772485,71.02744,2741.2,2741.1,57.05558486]
[1739553773619,67.45734,2741.2,2741.1,57.05558486]
[1739553773820,67.45734,2741.2,2741.1,57.04058486]
[1739553773981,69.02664,2741.2,2741.1,19.04058486]
[1739553774483,69.02664,2741.2,2741.1,57.04058486]
[1739553774683,74.57664,2741.2,2741.1,57.04058486]
[1739553776027,80.12664,2741.2,2741.1,57.04058486]
[1739553777102,85.67664,2741.2,2741.1,57.04058486]
[1739553777927,85.67664,2741.2,2741.1,53.94785495]
[1739553778596,91.22664,2741.2,2741.1,53.94785495]
[1739553779802,96.77664,2741.2,2741.1,53.94785495]
[1739553780214,96.77664,2741.2,2741.1,57.04058486]
[1739553780407,94.95262,2741.2,2741.1,57.04058486]
[1739553780615,91.5593,2741.2,2741.1,57.04058486]
[1739553780996,97.1093,2741.2,2741.1,56.75758486]
[1739553781213,102.00948161,2741.2,2741.1,38.98284159]
[1739553781622,102.00948161,2741.2,2741.1,6.98284159]
[1739553782192,104.2286,2741.2,2741.1,6.98284159]
[1739553783517,109.7786,2741.2,2741.1,6.98284159]
[1739553784931,115.3286,2741.2,2741.1,6.98284159]
[1739553786322,120.8786,2741.2,2741.1,6.64817]
[1739553787149,120.8786,2741.2,2741.1,6.98606474]
[1739553787518,126.4286,2741.2,2741.1,3.33789474]
[1739553787720,130.23493374,2741.2,2741.1,0.33789474]
[1739553788033,1.565,2741.1,2740.9,3.64843]
[1739553788206,1.565,2741.1,2740.9,3.64842]
[1739553788949,1.565,2741.0,2740.9,3.64842]
[1739553789374,1.565,2741.0,2740.9,6.64842]
[1739553789521,5.55,2741.1,2741.0,6.6483]
[1739553790027,11.1,2741.1,2741.0,6.6483]
[1739553790534,11.1,2741.1,2741.0,12.99031336]
[1739553790734,1.97955,2741.1,2741.0,12.99781336]
[1739553791049,1.97955,2741.1,2741.0,13.00531336]
[1739553791215,3.88151,2741.1,2741.0,13.00531336]
[1739553791410,124.8593,2741.2,2741.1,6.64817]
[1739553792053,124.8593,2741.2,2741.1,41.64817]
[1739553792425,130.4093,2741.2,2741.1,41.64817]
[1739553794356,135.9593,2741.2,2741.1,41.64817]
[1739553795758,141.5093,2741.2,2741.1,41.64817]
[1739553796131,143.0743,2741.2,2741.1,41.93017]
[1739553796326,143.0743,2741.2,2741.1,6.93017]
[1739553796932,147.0593,2741.2,2741.1,41.93017]
[1739553798114,152.6093,2741.2,2741.1,41.93017]
[1739553799429,158.1593,2741.2,2741.1,41.93017]
[1739553800615,163.7093,2741.2,2741.1,41.93017]
[1739553801217,152.76518,2741.2,2741.1,42.60557868]
[1739553801841,154.66714,2741.2,2741.1,45.71330859]
[1739553802048,154.66714,2741.2,2741.1,57.94532195]
[1739553802250,147.37106,2741.2,2741.1,54.85259204]
[1739553803034,147.37106,2741.2,2741.1,57.94532195]
[1739553803345,134.84377506,2741.2,2741.1,58.24532195]
[1739553803543,134.84377506,2741.2,2741.1,57.72197903]
[1739553803744,134.84377506,2741.2,2741.1,57.80397903]
[1739553803944,134.84377506,2741.2,2741.1,55.26124912]
[1739553804134,134.84377506,2741.2,2741.1,54.30259204]
[1739553804649,140.39377506,2741.2,2741.1,41.98567868]
[1739553804841,140.39377506,2741.2,2741.1,42.26767868]
[1739553805359,138.56975506,2741.2,2741.1,42.62057868]
[1739553805860,144.11975506,2741.2,2741.1,42.62057868]
[1739553806419,142.29573506,2741.2,2741.1,42.62057868]
[1739553807166,147.84573506,2741.2,2741.1,42.62057868]
[1739553808563,153.39573506,2741.2,2741.1,42.62057868]
[1739553808758,153.39573506,2741.2,2741.1,41.98567868]
[1739553809059,153.39573506,2741.2,2741.1,7.26767868]
[1739553809700,158.94573506,2741.2,2741.1,7.26767868]
[1739553810995,164.49573506,2741.2,2741.1,7.26767868]
[1739553812198,159.10161506,2741.2,2741.1,7.31915374]
[1739553812412,151.80553506,2741.2,2741.1,7.62057868]
[1739553812997,151.80553506,2741.2,2741.1,7.26767868]
[1739553813407,157.35553506,2741.2,2741.1,7.26767868]
[1739553813587,157.35553506,2741.2,2741.1,7.28267868]
[1739553814469,153.70749506,2741.2,2741.1,10.37540859]
[1739553814816,153.78543506,2741.2,2741.1,11.26330859]
[1739553815113,153.78543506,2741.2,2741.1,8.17057868]
[1739553815410,146.48935506,2741.2,2741.1,11.36330859]
[1739553815907,152.03935506,2741.2,2741.1,8.17057868]
[1739553816294,152.03935506,2741.2,2741.1,7.28267868]
[1739553817192,157.58935506,2741.2,2741.1,7.83267868]
[1739553817505,148.46925506,2741.2,2741.1,7.83267868]
[1739553818718,154.01925506,2741.2,2741.1,7.83267868]
[1739553819678,154.01925506,2741.2,2741.1,14.17469204]
[1739553820021,159.56925506,2741.2,2741.1,14.17469204]
[1739553820226,159.56925506,2741.2,2741.1,13.34269204]
[1739553820525,159.56925506,2741.2,2741.1,10.62469204]
[1739553821220,165.11925506,2741.2,2741.1,13.62469204]
[1739553822218,165.11925506,2741.2,2741.1,13.96259204]
[1739553822382,170.66925506,2741.2,2741.1,13.96259204]
[1739553822891,170.66925506,2741.2,2741.1,13.62469204]
[1739553823683,176.21925506,2741.2,2741.1,13.62469204]
[1739553825121,181.76925506,2741.2,2741.1,13.62469204]
[1739553825808,181.76925506,2741.2,2741.1,7.28267868]
[1739553826327,187.31925506,2741.2,2741.1,7.28267868]
[1739553827613,192.86925506,2741.2,2741.1,7.28267868]
[1739553828929,198.41925506,2741.2,2741.1,7.28267868]
[1739553829984,200.32121506,2741.2,2741.1,7.28267868]
[1739553831230,205.87121506,2741.2,2741.1,7.00067868]
[1739553831402,205.87121506,2741.2,2741.1,7.28267868]
[1739553831984,181.05407423,2741.2,2741.1,17.94179654]
[1739553832182,157.62327019,2741.2,2741.1,24.15422515]
[1739553832379,163.13680185,2741.2,2741.1,24.56288223]
[1739553832601,161.67252117,2741.2,2741.1,24.56288223]
[1739553832919,161.67252117,2741.2,2741.1,59.56288223]
[1739553833120,161.67252117,2741.2,2741.1,59.13394148]
[1739553833327,156.20046117,2741.2,2741.1,59.13394148]
[1739553833533,156.20046117,2741.2,2741.1,58.65397903]
[1739553833830,161.75046117,2741.2,2741.1,58.65397903]
[1739553834187,159.92644117,2741.2,2741.1,58.65397903]
[1739553834487,156.27840117,2741.2,2741.1,58.65397903]
[1739553834839,145.27334061,2741.2,2741.1,58.37197903]
[1739553834985,145.27334061,2741.2,2741.1,58.65397903]
[1739553835185,143.44932061,2741.2,2741.1,58.24532195]
[1739553835404,143.44932061,2741.2,2741.1,42.43130859]
[1739553835405,139.80128061,2741.2,2741.1,42.43130859]
[1739553835643,139.80128061,2741.2,2741.1,39.28267868]
[1739553836011,145.35128061,2741.2,2741.1,39.28267868]
[1739553836336,145.35128061,2741.2,2741.1,45.37540859]
[1739553837032,136.23118061,2741.2,2741.1,45.92540859]
[1739553837198,136.30912061,2741.2,2741.1,52.70532195]
[1739553837400,136.30912061,2741.2,2741.1,52.05532195]
[1739553837942,123.70389567,2741.2,2741.1,52.36781327]
[1739553838137,123.70389567,2741.2,2741.1,49.27508336]
[1739553838307,120.13379567,2741.2,2741.1,52.36781327]
[1739553838512,120.13379567,2741.2,2741.1,49.17508336]
[1739553839033,120.13379567,2741.2,2741.1,52.26781327]
[1739553839195,114.66173567,2741.2,2741.1,52.26781327]
[1739553839397,110.48662424,2741.2,2741.1,52.26781327]
[1739553839597,115.8003394,2741.2,2741.1,52.66600335]
[1739553840228,112.1522994,2741.2,2741.1,49.57327344]
[1739553840539,110.3282794,2741.2,2741.1,49.57327344]
[1739553840902,115.8782794,2741.2,2741.1,49.57327344]
[1739553841102,115.8782794,2741.2,2741.1,49.67327344]
[1739553841403,112.2302394,2741.2,2741.1,49.67327344]
[1739553841604,110.4062194,2741.2,2741.1,49.67327344]
[1739553842005,110.4062194,2741.2,2741.1,43.23126008]
[1739553842219,115.9562194,2741.2,2741.1,43.23126008]
[1739553842618,110.4841594,2741.2,2741.1,49.17508336]
[1739553843212,105.0120994,2741.2,2741.1,49.17508336]
[1739553843421,106.9140594,2741.2,2741.1,49.17508336]
[1739553844359,97.7939594,2741.2,2741.1,49.17508336]
[1739553844665,103.3439594,2741.2,2741.1,49.17508336]
[1739553845458,101.5199394,2741.2,2741.1,49.17508336]
[1739553845868,107.0699394,2741.2,2741.1,49.17508336]
[1739553846075,107.0699394,2741.2,2741.1,48.83718336]
[1739553846215,107.0699394,2741.2,2741.1,41.94517]
[1739553847033,112.6199394,2741.2,2741.1,41.94517]
[1739553848369,118.1699394,2741.2,2741.1,41.94517]
[1739553848528,118.1699394,2741.2,2741.1,41.66317]
[1739553848937,118.1699394,2741.2,2741.1,38.64817]
[1739553849121,118.1699394,2741.2,2741.1,38.93017]
[1739553849561,125.2365394,2741.2,2741.1,38.282]
[1739553849719,125.2365394,2741.2,2741.1,38.0]
[1739553849921,125.2365394,2741.2,2741.1,38.282]
[1739553850873,130.7865394,2741.2,2741.1,38.282]
[1739553851179,130.7865394,2741.2,2741.1,41.93017]
[1739553852027,136.3365394,2741.2,2741.1,41.93017]
[1739553853274,141.8865394,2741.2,2741.1,38.0]
[1739553853472,141.8865394,2741.2,2741.1,38.282]
[1739553854141,141.8865394,2741.2,2741.1,38.0]
[1739553854346,141.8865394,2741.2,2741.1,38.282]
[1739553854535,147.4365394,2741.2,2741.1,38.282]
[1739553855148,147.4365394,2741.2,2741.1,41.93017]
[1739553855962,152.9865394,2741.2,2741.1,41.93017]
[1739553856561,152.9865394,2741.2,2741.1,38.0]
[1739553856736,152.9865394,2741.2,2741.1,41.93017]
[1739553857278,158.5365394,2741.2,2741.1,41.93017]
[1739553858390,164.0865394,2741.2,2741.1,41.93017]
[1739553858599,162.5699394,2741.2,2741.1,41.94517]
[1739553859643,168.1199394,2741.2,2741.1,41.94517]
[1739553860911,173.6699394,2741.2,2741.1,41.94517]
[1739553862154,173.6699394,2741.2,2741.1,41.93017]
[1739553862279,180.8670394,2741.2,2741.1,41.93017]
[1739553863774,186.4170394,2741.2,2741.1,41.93017]
[1739553864118,184.7699394,2741.2,2741.1,41.94517]
[1739553864323,177.4738594,2741.2,2741.1,42.49517]
[1739553864523,175.6498394,2741.2,2741.1,42.69517]
[1739553864805,175.6498394,2741.2,2741.1,41.94517]
[1739553865106,181.1998394,2741.2,2741.1,41.66317]
[1739553865306,181.1998394,2741.2,2741.1,41.94517]
[1739553866178,186.7498394,2741.2,2741.1,41.94517]
[1739553867325,192.2998394,2741.2,2741.1,41.94517]
[1739553867527,192.2998394,2741.2,2741.1,42.28307]
[1739553868717,197.8498394,2741.2,2741.1,42.28307]
[1739553869959,203.3998394,2741.2,2741.1,42.28307]
[1739553870261,203.3998394,2741.2,2741.1,41.94517]
[1739553871254,208.9498394,2741.2,2741.1,41.94517]
[1739553871661,201.6537594,2741.2,2741.1,42.83307]
[1739553872557,207.2037594,2741.2,2741.1,42.83307]
[1739553873223,198.0836594,2741.2,2741.1,42.83307]
[1739553873425,194.4356194,2741.2,2741.1,42.83307]
[1739553873638,198.1615994,2741.2,2741.1,42.83307]
[1739553875263,203.7115994,2741.2,2741.1,42.83307]
[1739553876536,201.9655194,2741.2,2741.1,42.83307]
[1739553878687,207.5155194,2741.2,2741.1,42.83307]
[1739553879076,198.3954194,2741.2,2741.1,42.83307]
[1739553879284,192.9233594,2741.2,2741.1,45.92579991]
[1739553879799,192.9233594,2741.2,2741.1,42.83307]
[1739553880000,198.4733594,2741.2,2741.1,42.83307]
[1739553880201,196.6493394,2741.2,2741.1,42.83307]
[1739553880360,191.1772794,2741.2,2741.1,42.83307]
[1739553880703,189.3532594,2741.2,2741.1,42.83307]
[1739553881286,176.82597446,2741.2,2741.1,52.26781327]
[1739553881494,176.82597446,2741.2,2741.1,52.69024732]
[1739553882552,176.90391446,2741.2,2741.1,52.69024732]
[1739553883285,175.07989446,2741.2,2741.1,52.69024732]
[1739553884002,164.37662952,2741.2,2741.1,52.69024732]
[1739553884199,162.55260952,2741.2,2741.1,52.69024732]
[1739553884404,157.80856952,2741.2,2741.1,52.69024732]
[1739553885427,157.88650952,2741.2,2741.1,52.69024732]
[1739553885631,157.88650952,2741.2,2741.1,52.40824732]
[1739553885832,157.88650952,2741.2,2741.1,49.04751741]
[1739553886083,157.88650952,2741.2,2741.1,48.34308336]
[1739553886189,157.88650952,2741.2,2741.1,38.94517]
[1739553886526,157.88650952,2741.2,2741.1,41.94517]
[1739553886719,163.43650952,2741.2,2741.1,41.94517]
[1739553887621,156.14042952,2741.2,2741.1,45.37579991]
[1739553887852,154.31640952,2741.2,2741.1,46.02579991]
[1739553888031,147.24291234,2741.2,2741.1,46.44823396]
[1739553888197,145.41889234,2741.2,2741.1,46.44823396]
[1739553888518,137.07819273,2741.2,2741.1,52.79024732]
[1739553889443,137.15613273,2741.2,2741.1,52.79024732]
[1739553890244,130.31159273,2741.2,2741.1,52.79024732]
[1739553890440,134.03757273,2741.2,2741.1,53.27020977]
[1739553890629,125.38218341,2741.2,2741.1,53.27020977]
[1739553891312,117.78430779,2741.2,2741.1,53.27020977]
[1739553891513,115.96028779,2741.2,2741.1,53.27020977]
[1739553891717,121.51028779,2741.2,2741.1,53.27020977]
[1739553892137,121.51028779,2741.2,2741.1,52.79024732]
[1739553892298,116.03822779,2741.2,2741.1,52.79024732]
[1739553892499,116.03822779,2741.2,2741.1,49.69751741]
[1739553893036,121.58822779,2741.2,2741.1,49.69751741]
[1739553893336,112.48232779,2741.2,2741.1,52.79024732]
[1739553893645,110.51807779,2741.2,2741.1,52.79024732]
[1739553894147,116.06807779,2741.2,2741.1,52.50824732]
[1739553894356,114.24405779,2741.2,2741.1,52.79024732]
[1739553894655,110.59601779,2741.2,2741.1,52.79024732]
[1739553895151,110.59601779,2741.2,2741.1,53.30200932]
[1739553895346,95.16252422,2741.2,2741.1,53.30200932]
[1739553895498,95.13776736,2741.2,2741.1,53.30200932]
[1739553895704,94.39713472,2741.2,2741.1,53.30200932]
[1739553896352,85.85304181,2741.2,2741.1,59.16728447]
[1739553896508,87.36781645,2741.2,2741.1,59.16728447]
[1739553897052,86.24100654,2741.2,2741.1,59.16728447]
[1739553897252,84.41698654,2741.2,2741.1,59.16728447]
[1739553897706,86.31894654,2741.2,2741.1,59.16728447]
[1739553898402,72.19149722,2741.2,2741.1,59.16728447]
[1739553898744,71.19319722,2741.2,2741.1,59.16728447]
[1739553899050,62.74453478,2741.2,2741.1,61.01931875]
[1739553899199,59.45786232,2741.2,2741.1,61.01931875]
[1739553899404,43.52987421,2741.2,2741.1,61.01931875]
[1739553899657,34.66541486,2741.2,2741.1,61.01931875]
[1739553900024,37.24332486,2741.2,2741.1,63.21231875]
[1739553900319,19.37397889,2741.2,2741.1,56.87030539]
[1739553900519,10.85704276,2741.2,2741.1,56.87030539]
[1739553900726,2.72416895,2741.2,2741.1,56.87030539]
[1739553900944,1.5723,2743.2,2743.1,6.66051]
[1739553901106,0.005,2743.4,2743.3,6.66024]